fUSD/lending_fUSD_20241016
["ID","MTS","AMOUNT","RATE_DAILY","PERIOD"]
[340367594,1729107046737,-12570.33078719,0.00011,2]
[340367595,1729107046749,-2956.58862386,0.00011,2]
[340367598,1729107046830,-72261.25572128,0.00011,2]
[340367599,1729107046852,-31413.57886215,0.00011,2]
[340367610,1729107047458,2800.0,0.000105,3]
[340367616,1729107047723,1199.82932017,0.00010999,3]
[340367643,1729107049588,5600.0,0.000106,3]
[340367679,1729107051705,8400.0,0.000107,3]
[340367718,1729107053836,11200.0,0.000108,3]
[340367752,1729107055936,14000.0,0.000109,3]
[340368115,1729107078007,1184.96,9.886e-05,2]
[340368121,1729107078252,1184.96,9.888e-05,2]
[340368126,1729107078487,1184.96,9.891e-05,2]
[340368131,1729107078706,1184.96,9.893e-05,2]
[340368136,1729107078948,1184.96,9.896e-05,2]
[340368141,1729107079196,1184.96,9.899e-05,2]
[340368146,1729107079413,1184.96,9.901e-05,2]
[340368151,1729107079699,1184.96,9.904e-05,2]
[340368156,1729107080172,1184.96,9.906e-05,2]
[340368160,1729107080362,1184.96,9.909e-05,2]
[340368170,1729107080876,1184.96,9.912e-05,2]
[340368175,1729107081130,1184.96,9.914e-05,2]
[340368180,1729107081372,1184.96,9.917e-05,2]
[340368187,1729107081785,1184.96,9.92e-05,2]
[340368197,1729107082269,1184.96,9.922e-05,2]
[340368202,1729107082498,1184.96,9.925e-05,2]
[340368207,1729107082712,1184.96,9.927e-05,2]
[340368213,1729107082988,1184.96,9.93e-05,2]
[340368218,1729107083232,1184.96,9.933e-05,2]
[340368223,1729107083465,1184.96,9.935e-05,2]
[340368845,1729107182038,150.5,0.00013158,120]
[340368858,1729107182532,150.5,0.00013148,120]
[340368871,1729107183026,150.5,0.00013138,120]
[340368884,1729107183534,150.5,0.0002246,120]
[340368897,1729107184008,197.04,0.0002245,120]
[340369101,1729107192332,2000.0,0.00026997,120]
[340369206,1729107196533,500.0,0.00026997,120]
[340369341,1729107201981,200.0,0.00026997,120]
[340371306,1729107280004,150.0,9.879e-05,2]
[340371307,1729107280024,200.03282531,9.879e-05,2]
[340371308,1729107280046,2207.67717469,9.879e-05,2]
[340371309,1729107346262,342.16,9.877e-05,2]
[340371311,1729107429839,250.0,9.872e-05,2]
[340371313,1729107513645,200.0,9.869e-05,2]
[340371314,1729107522340,510.36,9.948e-05,2]
[340371315,1729107596423,159.97,9.871e-05,2]
[340371316,1729107614479,150.0,9.871e-05,2]
[340371317,1729107614500,242.01,9.871e-05,2]
[340371318,1729107614522,21882.47,9.871e-05,2]
[340371319,1729107636312,165.18,9.873e-05,2]
[340371320,1729107636554,165.18,9.898e-05,2]
[340371321,1729107637024,165.18,9.922e-05,2]
[340371322,1729107755037,392.01,9.862e-05,2]
[340371323,1729107789504,1633.55,9.862e-05,2]
[340371324,1729107795527,500.0,0.00026999,120]
[340371325,1729107800501,200.0,0.00026999,120]
[340371326,1729107897021,250.0,9.865e-05,2]
[340371327,1729107912447,-173.2,0.00010408,2]
[340371328,1729108000700,150.0,9.863e-05,2]
[340371329,1729108000722,150.0,9.863e-05,2]
[340371330,1729108000742,150.0,9.863e-05,2]
[340371331,1729108000764,50.0,9.863e-05,2]
[340371332,1729108022199,150.0,8.219e-05,2]
[340371333,1729108022223,150.0,8.219e-05,2]
[340371334,1729108022246,150.0,8.219e-05,2]
[340371335,1729108022269,150.0,8.219e-05,2]
[340371336,1729108022291,150.0,8.219e-05,2]
[340371337,1729108022313,272.07965649,8.219e-05,2]
[340371338,1729108022340,592.13034351,8.219e-05,2]
[340371339,1729108048426,700.0,0.000105,3]
[340371340,1729108050538,1400.0,0.000106,3]
[340371341,1729108051183,150.0,9.859e-05,2]
[340371342,1729108051204,24.71,9.859e-05,2]
[340371343,1729108052637,2100.0,0.000107,3]
[340371344,1729108054785,2800.0,0.000108,3]
[340371345,1729108056889,3500.0,0.000109,3]
[340371346,1729108064049,150.0,9.858e-05,2]
[340371347,1729108064076,100.0,9.858e-05,2]
[340371348,1729108069530,200.0,9.858e-05,2]
[340371349,1729108085063,350.03,9.937e-05,2]
[340371350,1729108102453,150.0,9.858e-05,2]
[340371351,1729108102474,150.0,9.858e-05,2]
[340371352,1729108102495,248.79421972,9.858e-05,2]
[340371353,1729108102735,383.61578028,9.858e-05,2]
[340371354,1729108113943,136287.382758,9.858e-05,2]
[340371360,1729108231424,-651.51981103,0.00010468,2]
[340371361,1729108231439,-962.69018897,0.00010468,2]
[340371362,1729108231449,-150.0,0.00010575,2]
[340371363,1729108231458,-2164.17654871,0.00010601,2]
[340371364,1729108231478,-300.3,0.00010601,2]
[340371365,1729108231510,-520.41993916,0.00010601,2]
[340371366,1729108231521,-161.54871213,0.00010601,2]
[340371367,1729108231531,-914.4265,0.00010601,2]
[340371368,1729108231540,-297.9512,0.00010601,2]
[340371369,1729108231549,-197.2964,0.00010601,2]
[340371370,1729108231559,-3016.55182492,0.00010609,2]
[340371371,1729108231568,-150.0,0.000107,2]
[340371372,1729108231577,-1042.0,0.000107,2]
[340371373,1729108231587,-43.23340304,0.00010701,2]
[340371374,1729108231712,-1185.39,0.00010701,2]
[340371375,1729108231724,-479.84771151,0.00010701,2]
[340371376,1729108231755,-453.0,0.00010701,2]
[340371377,1729108231783,-4152.78334034,0.00010701,2]
[340371378,1729108231803,-3462.95560693,0.00010701,2]
[340371379,1729108231814,-4869.87206032,0.00010701,2]
[340371383,1729108237545,-250.0,0.00010701,2]
[340371392,1729108239415,-650.10809178,0.00010701,2]
[340371393,1729108239427,-1334.87992875,0.00010701,2]
[340371394,1729108239439,-23324.23935733,0.00010701,2]
[340371395,1729108239449,-430.0889,0.00010701,2]
[340371396,1729108239459,-150.0,0.00010729,2]
[340371397,1729108239468,-1500.0,0.00010739,2]
[340371398,1729108239478,-1500.0,0.0001074,2]
[340371399,1729108239487,-150.0,0.0001074,2]
[340371400,1729108239498,-150.0,0.0001074,2]
[340371401,1729108239507,-150.0,0.0001074,2]
[340371402,1729108239517,-499.99,0.0001074,2]
[340371403,1729108239527,-182.94458545,0.00010743,2]
[340371404,1729108239537,-2764.01777693,0.00010743,2]
[340371405,1729108239564,-262.01,0.00010743,2]
[340371406,1729108239610,-332.63776424,0.00010743,2]
[340371467,1729108242492,-259.86026,0.00010743,2]
[340371468,1729108242576,-767.14366818,0.00010743,2]
[340371469,1729108242589,-589.37436581,0.00010743,2]
[340371470,1729108242601,-644.37616484,0.00010743,2]
[340371471,1729108242610,-90.46156031,0.00010744,2]
[340371472,1729108242621,-59.53843969,0.00010744,2]
[340371473,1729108242631,-150.0,0.00010751,2]
[340371474,1729108242641,-150.0,0.00010751,2]
[340371475,1729108242650,-150.0,0.00010751,2]
[340371476,1729108242661,-150.0,0.00010751,2]
[340371477,1729108242671,-1500.0,0.00010753,2]
[340371478,1729108242680,-150.0,0.00010753,2]
[340371479,1729108242690,-150.0,0.00010758,2]
[340371480,1729108242699,-150.0,0.00010758,2]
[340371481,1729108242709,-150.0,0.0001076,2]
[340371482,1729108242719,-1500.0,0.00010764,2]
[340371483,1729108242728,-1500.0,0.00010768,2]
[340371484,1729108242737,-150.0,0.00010771,2]
[340371485,1729108242748,-150.0,0.00010772,2]
[340371486,1729108242758,-150.0,0.00010776,2]
[340371487,1729108242767,-150.0,0.00010777,2]
[340371488,1729108242777,-150.0,0.0001078,2]
[340371489,1729108242786,-150.0,0.0001078,2]
[340371492,1729108243028,-150.0,0.00010784,2]
[340371493,1729108243038,-150.0,0.00010785,2]
[340371494,1729108243048,-150.0,0.00010791,2]
[340371495,1729108243059,-150.0,0.00010792,2]
[340371496,1729108243069,-150.0,0.00010792,2]
[340371497,1729108243078,-1500.0,0.00010794,2]
[340371498,1729108243089,-150.0,0.00010796,2]
[340371499,1729108243098,-150.0,0.00010797,2]
[340371500,1729108243108,-150.0,0.00010798,2]
[340371501,1729108243118,-150.0,0.00010798,2]
[340371502,1729108243128,-1000.0,0.000108,2]
[340371503,1729108243138,-150.0,0.00010814,2]
[340371504,1729108243148,-150.0,0.00010816,2]
[340371505,1729108243158,-150.0,0.00010819,2]
[340371506,1729108243169,-150.0,0.0001082,2]
[340371507,1729108243180,-150.0,0.0001082,2]
[340371508,1729108243190,-150.0,0.00010822,2]
[340371509,1729108243200,-1500.0,0.00010825,2]
[340371510,1729108243210,-150.0,0.00010826,2]
[340371511,1729108243220,-1500.0,0.00010829,2]
[340371512,1729108243230,-1500.0,0.00010831,2]
[340371513,1729108243240,-150.0,0.00010835,2]
[340371514,1729108243249,-150.0,0.00010837,2]
[340371515,1729108243258,-150.0,0.00010838,2]
[340371516,1729108243268,-150.0,0.00010841,2]
[340371517,1729108243285,-467.47694127,0.00010843,2]
[340371518,1729108243295,-150.0,0.00010843,2]
[340371519,1729108243305,-150.0,0.00010845,2]
[340371520,1729108243318,-150.0,0.00010847,2]
[340371521,1729108243328,-150.0,0.00010848,2]
[340371522,1729108243338,-1500.0,0.00010849,2]
[340371523,1729108243347,-150.0,0.00010849,2]
[340371524,1729108243359,-150.0,0.00010852,2]
[340371525,1729108243370,-150.0,0.00010854,2]
[340371526,1729108243380,-150.0,0.00010855,2]
[340371527,1729108243390,-150.0,0.00010858,2]
[340371528,1729108243399,-150.0,0.00010858,2]
[340371529,1729108243408,-172.91512375,0.00010859,2]
[340371530,1729108243419,-150.0,0.0001086,2]
[340371531,1729108243428,-150.0,0.0001086,2]
[340371532,1729108243437,-150.0,0.00010865,2]
[340371533,1729108243447,-150.0,0.00010867,2]
[340371534,1729108243457,-150.0,0.00010872,2]
[340371535,1729108243467,-150.0,0.00010873,2]
[340371536,1729108243477,-150.0,0.00010873,2]
[340371537,1729108243487,-150.0,0.00010875,2]
[340371538,1729108243497,-1500.0,0.00010878,2]
[340371539,1729108243507,-150.0,0.00010879,2]
[340371540,1729108243517,-1500.0,0.0001088,2]
[340371541,1729108243527,-1500.0,0.00010882,2]
[340371542,1729108243537,-151.3402654,0.00010884,2]
[340371543,1729108243547,-150.0,0.00010886,2]
[340371544,1729108243557,-150.0,0.00010888,2]
[340371545,1729108243566,-150.0,0.00010895,2]
[340371546,1729108243575,-150.0,0.00010899,2]
[340371547,1729108243585,-150.0,0.00010899,2]
[340371548,1729108243594,-12179.24369002,0.00010899,2]
[340371549,1729108243603,-3497.970885,0.000109,2]
[340371550,1729108243612,-150.0,0.000109,2]
[340371551,1729108243622,-7500.0,0.000109,2]
[340371552,1729108243631,-176.14466607,0.000109,2]
[340371553,1729108243641,-244.86685385,0.000109,2]
[340371554,1729108243650,-471.0791062,0.000109,2]
[340371555,1729108243660,-150.0,0.00010902,2]
[340371556,1729108243670,-150.0,0.00010903,2]
[340371557,1729108243681,-150.0,0.00010906,2]
[340371558,1729108243691,-150.0,0.00010907,2]
[340371559,1729108243701,-1500.0,0.00010908,2]
[340371560,1729108243711,-150.0,0.00010909,2]
[340371561,1729108243720,-150.0,0.0001091,2]
[340371562,1729108243730,-150.0,0.00010912,2]
[340371563,1729108243739,-1500.0,0.00010916,2]
[340371564,1729108243750,-150.0,0.00010922,2]
[340371565,1729108243760,-150.0,0.00010923,2]
[340371566,1729108243770,-150.0,0.00010923,2]
[340371567,1729108243781,-150.0,0.00010926,2]
[340371568,1729108243791,-1500.0,0.00010927,2]
[340371569,1729108243800,-1500.0,0.00010929,2]
[340371570,1729108243810,-150.0,0.00010934,2]
[340371571,1729108243820,-1500.0,0.00010934,2]
[340371572,1729108243830,-150.0,0.00010935,2]
[340371573,1729108243840,-150.0,0.00010939,2]
[340371574,1729108243849,-1500.0,0.00010941,2]
[340371575,1729108243859,-150.0,0.00010943,2]
[340371576,1729108243869,-176.417,0.00010944,2]
[340371577,1729108243879,-150.0,0.00010945,2]
[340371578,1729108243889,-150.0,0.00010947,2]
[340371579,1729108243900,-150.0,0.00010949,2]
[340371580,1729108243909,-150.0,0.0001095,2]
[340371581,1729108243919,-150.0,0.0001095,2]
[340371582,1729108243930,-150.0,0.00010953,2]
[340371583,1729108243940,-150.0,0.00010957,2]
[340371584,1729108243950,-150.0,0.00010958,2]
[340371585,1729108243960,-150.0,0.00010958,2]
[340371586,1729108243970,-170.08,0.00010959,2]
[340371587,1729108243980,-441.3,0.00010959,2]
[340371588,1729108243990,-220.6,0.00010959,2]
[340371589,1729108244000,-51047.80166124,0.00010959,2]
[340371590,1729108244017,-1567.14258899,0.00010959,2]
[340371593,1729108245626,-6789.099984,0.00010959,2]
[340371594,1729108245638,-2961.35,0.00010959,2]
[340371596,1729108342460,252.44,9.967e-05,2]
[340371597,1729108393773,500.0,0.00026997,120]
[340371598,1729108398732,200.0,0.00026997,120]
[340371599,1729108419130,160.0,9.945e-05,2]
[340371600,1729108504136,260.38,9.955e-05,2]
[340371601,1729108550450,250.0,9.947e-05,2]
[340371602,1729108553297,242.95,9.947e-05,2]
[340371603,1729108591486,672.94,9.959e-05,2]
[340371604,1729108606937,1043.88,9.955e-05,2]
[340371605,1729108620736,1534.24,8.219e-05,2]
[340371606,1729108635473,552.45,9.938e-05,2]
[340371607,1729108723032,550.0,0.0001,2]
[340371608,1729108733837,250.0,9.93e-05,2]
[340371609,1729108996328,500.0,0.00026999,120]
[340371610,1729109001528,216.795165,0.00026999,120]
[340371611,1729109054050,1000.0,9.937e-05,2]
[340371612,1729109081024,273.72,9.933e-05,2]
[340371613,1729109150979,250.0,9.932e-05,2]
[340371614,1729109176337,521.94,9.927e-05,2]
[340371615,1729109186869,1487.37,8.219e-05,2]
[340371616,1729109247294,159.97,9.919e-05,2]
[340371617,1729109346115,250.0,9.919e-05,2]
[340371640,1729109431835,-1487.37,0.00010472,2]
[340371641,1729109431844,-1000.0,0.000106,2]
[340371642,1729109431853,-150.0,0.00010742,2]
[340371643,1729109431863,-150.0,0.00010751,2]
[340371644,1729109431872,-150.0,0.00010754,2]
[340371645,1729109431881,-150.0,0.00010764,2]
[340371646,1729109431890,-150.0,0.00010796,2]
[340371647,1729109431899,-150.0,0.00010798,2]
[340371648,1729109431908,-327.4881985,0.000108,2]
[340371657,1729109437689,-672.5118015,0.000108,2]
[340371658,1729109437698,-150.0,0.00010819,2]
[340371659,1729109437707,-499.99,0.00010819,2]
[340371660,1729109437717,-150.0,0.00010842,2]
[340371661,1729109437726,-150.0,0.00010849,2]
[340371662,1729109437735,-150.0,0.00010888,2]
[340371663,1729109437744,-1150.0,0.00010893,2]
[340371664,1729109437754,-5885.0,0.00010893,2]
[340371665,1729109437764,-2255.9373232,0.00010893,2]
[340371666,1729109437779,-2637.7671035,0.00010893,2]
[340371667,1729109437798,-1007.36218342,0.00010893,2]
[340371668,1729109437851,-4178.676,0.00010893,2]
[340371669,1729109439681,-1819.99999776,0.00010893,2]
[340371670,1729109439692,-1632.25739212,0.00010893,2]
[340371671,1729109439702,-153.798,0.00010893,2]
[340371672,1729109439712,-257.71084626,0.00010893,2]
[340371673,1729109439723,-804.51239305,0.00010893,2]
[340371674,1729109439735,-21.77676069,0.00010893,2]
[340371675,1729109439745,-150.0,0.00010899,2]
[340371676,1729109439755,-1716.0,0.000109,2]
[340371677,1729109439765,-150.0,0.00010902,2]
[340371678,1729109439775,-382.00651317,0.00010903,2]
[340371679,1729109439786,-1226.66149548,0.00010903,2]
[340371680,1729109439798,-352.75909744,0.00010903,2]
[340371681,1729109439820,-193.82159495,0.00010903,2]
[340371682,1729109439829,-150.0,0.00010906,2]
[340371683,1729109439839,-150.0,0.00010914,2]
[340371684,1729109439849,-150.0,0.00010916,2]
[340371685,1729109439858,-150.0,0.00010922,2]
[340371686,1729109439868,-150.0,0.00010945,2]
[340371687,1729109439877,-150.0,0.00010949,2]
[340371688,1729109439887,-158.72,0.00010959,2]
[340371689,1729109439897,-176.41719196,0.00010959,2]
[340371691,1729109439906,-172.39,0.00010959,2]
[340371693,1729109439916,-61047.16,0.00010959,2]
[340371695,1729109439925,-1500.0,0.00010959,2]
[340371697,1729109439934,-250.0,0.00010959,2]
[340371699,1729109439944,-150.65,0.00010959,2]
[340371701,1729109439955,-399.97,0.00010959,2]
[340371703,1729109439964,-753.25,0.00010959,2]
[340371705,1729109439973,-150.0,0.00010965,2]
[340371707,1729109439984,-150.0,0.00010966,2]
[340371709,1729109439993,-150.0,0.0001099,2]
[340371710,1729109440003,-254.40750035,0.0001099,2]
[340371713,1729109440013,-254.40750035,0.0001099,2]
[340371714,1729109440023,-254.40750035,0.0001099,2]
[340371716,1729109440034,-150.0,0.00010995,2]
[340371718,1729109440046,-507.6645264,0.00010999,2]
[340371720,1729109440055,-29835.20655216,0.00011,2]
[340371723,1729109440067,-1400.59519458,0.00011,2]
[340371725,1729109440078,-359.5022279,0.00011,2]
[340371727,1729109440089,-1725.10228148,0.00011,2]
[340371816,1729109442922,-647.46735558,0.00011,2]
[340371817,1729109442933,-1045.14,0.00011,2]
[340371818,1729109442944,-2057.28,0.00011,2]
[340371819,1729109442955,-225004.59175655,0.00011,2]
[340371820,1729109442965,-36431.99394514,0.00011,2]
[340371821,1729109442976,-446.58272423,0.00011,2]
[340371822,1729109443014,-17645.626209,0.00011,2]
[340371823,1729109443026,-16586.96867989,0.00011,2]
[340371824,1729109443038,-22424.1537147,0.00011,2]
[340371825,1729109443065,-302.23,0.00011,2]
[340371826,1729109443076,-300.1,0.00011,2]
[340371827,1729109443087,-307.38558639,0.00011,2]
[340371828,1729109443098,-274.264,0.00011,2]
[340371829,1729109443110,-309.865,0.00011,2]
[340371830,1729109443121,-474.34168891,0.00011,2]
[340371832,1729109445565,-74537.8588345,0.00011,2]
[340371833,1729109445618,-276.85259996,0.00011,2]
[340371834,1729109445727,-2379.74694949,0.00011,2]
[340371835,1729109445741,-1195.57080635,0.00011,2]
[340371836,1729109445781,-488.53388344,0.00011,2]
[340371837,1729109594829,500.0,0.00027,120]
[340371839,1729109678329,250.0,0.00010364,2]
[340371840,1729109683892,260.97,0.00010364,2]
[340371841,1729109709744,-200.0,0.000105,2]
[340371842,1729109709765,-150.0,0.0001062,2]
[340371843,1729109709787,-1074.20923467,0.0001078,2]
[340371844,1729109709808,-1001.86564638,0.0001078,2]
[340371845,1729109709830,-1088.58702143,0.0001078,2]
[340371846,1729109709851,-150.0,0.00010828,2]
[340371847,1729109709873,-300.0,0.00010858,2]
[340371848,1729109709893,-1260.4249,0.00010859,2]
[340371849,1729109709913,-1116.0346,0.00010859,2]
[340371850,1729109709933,-214.8672,0.00010859,2]
[340371851,1729109709953,-17064.01139752,0.000109,2]
[340371852,1729109993438,250.0,0.00010188,2]
[340371854,1729110069390,1338.63,8.387e-05,2]
[340371855,1729110099734,840.0,0.00010214,2]
[340371856,1729110196711,500.0,0.00027,120]
[340371857,1729110209651,250.0,0.00010066,2]
[340371858,1729110214410,200.0,0.00010066,2]
[340371859,1729110258703,538.35,0.00010064,2]
[340371860,1729110319182,680.31,9e-05,2]
[340371861,1729110329309,300.0,0.000101,2]
[340371862,1729110335137,-269.69131368,0.0001052,2]
[340371863,1729110355086,600.0,6.94e-05,2]
[340371864,1729110420969,283.85,9.902e-05,2]
[340371865,1729110479268,1462.53886215,0.0001,2]
[340371868,1729110538023,250.0,9.901e-05,2]
[340371870,1729110547845,550.0,0.0001,2]
[340371871,1729110595436,1303.75,8.219e-05,2]
[340371877,1729110631738,-200.98456089,0.0001042,2]
[340371878,1729110631748,-605.96948676,0.00010469,2]
[340371879,1729110631759,-697.78051324,0.00010469,2]
[340371880,1729110631769,-200.98456088,0.00010501,2]
[340371881,1729110631778,-33.57918632,0.0001052,2]
[340371882,1729110631788,-200.98456088,0.00010582,2]
[340371883,1729110631798,-1926.41007691,0.00010682,2]
[340371884,1729110631807,-150.0,0.0001074,2]
[340371885,1729110631816,-150.0,0.00010763,2]
[340371886,1729110631825,-150.0,0.00010764,2]
[340371887,1729110631835,-150.0,0.00010772,2]
[340371888,1729110631844,-1500.0,0.0001078,2]
[340371889,1729110631854,-499.99,0.0001078,2]
[340371890,1729110631863,-150.0,0.00010782,2]
[340371891,1729110631873,-150.0,0.00010783,2]
[340371892,1729110631882,-150.0,0.00010788,2]
[340371893,1729110631891,-993.31105676,0.00010799,2]
[340371894,1729110631903,-506.68894324,0.00010799,2]
[340371895,1729110631912,-2500.0,0.000108,2]
[340371896,1729110631922,-150.0,0.0001081,2]
[340371897,1729110631930,-150.0,0.00010832,2]
[340371898,1729110631939,-150.0,0.00010832,2]
[340371899,1729110631948,-661.5822505,0.00010865,2]
[340371900,1729110631964,-107.9137495,0.00010865,2]
[340371901,1729110631974,-150.0,0.00010868,2]
[340371902,1729110631984,-174.0862545,0.0001088,2]
[340371903,1729110631995,-301.45270129,0.0001088,2]
[340371904,1729110632007,-752.76793986,0.0001088,2]
[340371905,1729110634539,-1358.54556499,0.0001088,2]
[340371906,1729110634551,-6190.43932981,0.0001088,2]
[340371907,1729110634563,-806.59811442,0.0001088,2]
[340371908,1729110634575,-889.15149544,0.0001088,2]
[340371909,1729110634586,-4226.68477917,0.0001088,2]
[340371910,1729110634596,-150.0,0.00010898,2]
[340371911,1729110634605,-150.0,0.00010898,2]
[340371912,1729110634614,-10961.319321,0.00010899,2]
[340371913,1729110634624,-26384.03360248,0.000109,2]
[340371914,1729110634633,-479.8927,0.000109,2]
[340371915,1729110634642,-5673.4177,0.000109,2]
[340371916,1729110634652,-9191.44148286,0.000109,2]
[340371917,1729110634663,-670.05965265,0.000109,2]
[340371918,1729110634686,-2034.3771887,0.000109,2]
[340371919,1729110634931,-752.8607206,0.000109,2]
[340371920,1729110634946,-299.6900001,0.000109,2]
[340371921,1729110634959,-496.21639942,0.000109,2]
[340371922,1729110634971,-450.0,0.000109,2]
[340371923,1729110634989,-271.96394405,0.000109,2]
[340371924,1729110635000,-335.08950845,0.000109,2]
[340371925,1729110635011,-276.52,0.000109,2]
[340371926,1729110635023,-846.08694448,0.000109,2]
[340371927,1729110635035,-702.93574009,0.000109,2]
[340371928,1729110635050,-12177.92299829,0.000109,2]
[340371929,1729110635060,-3956.27515077,0.000109,2]
[340371930,1729110635071,-1947.2218158,0.000109,2]
[340371931,1729110635083,-2116.58799259,0.000109,2]
[340371932,1729110635094,-1001.08936115,0.000109,2]
[340371933,1729110635103,-2105.06332516,0.000109,2]
[340371934,1729110635116,-4277.03584135,0.000109,2]
[340371935,1729110635126,-5728.33169899,0.000109,2]
[340371936,1729110635138,-1681.43453616,0.000109,2]
[340371937,1729110635149,-541.49640217,0.000109,2]
[340371941,1729110637766,-499.76105864,0.000109,2]
[340371942,1729110637777,-299.79765415,0.000109,2]
[340371943,1729110637823,-717.39790656,0.000109,2]
[340371944,1729110637834,-2100.65791727,0.000109,2]
[340371945,1729110637882,-1201.07485359,0.000109,2]
[340371946,1729110637893,-21755.32132628,0.000109,2]
[340371947,1729110637904,-600.0,0.000109,2]
[340371948,1729110637949,-61596.1841733,0.000109,2]
[340371949,1729110637967,-141500.60190638,0.000109,2]
[340371950,1729110637977,-1587.0032108,0.00010909,2]
[340371951,1729110637986,-150.0,0.00010918,2]
[340371952,1729110637995,-1000.0,0.00010945,2]
[340371953,1729110638004,-1000.0,0.00010945,2]
[340371954,1729110638013,-1000.0,0.00010945,2]
[340371955,1729110638022,-447.255,0.00010945,2]
[340371956,1729110638031,-1500.0,0.00010958,2]
[340371957,1729110638040,-558.17,0.00010959,2]
[340371958,1729110638050,-171.3,0.00010959,2]
[340371959,1729110638059,-250.0,0.00010959,2]
[340371960,1729110638068,-739.87,0.00010959,2]
[340371961,1729110638077,-295.13657877,0.00010967,2]
[340371962,1729110638086,-160.45095124,0.00010973,2]
[340371963,1729110638096,-500.0,0.00010973,2]
[340371964,1729110638105,-10586.21522959,0.00010983,2]
[340371965,1729110638115,-150.0,0.00010994,2]
[340371966,1729110638125,-483.45555286,0.00010998,2]
[340371967,1729110638134,-500.0,0.00010999,2]
[340371968,1729110638143,-580.36188318,0.00010999,2]
[340371969,1729110638152,-500.0,0.00010999,2]
[340371970,1729110638162,-253.8322632,0.00010999,2]
[340371971,1729110638171,-555.0,0.00010999,2]
[340371972,1729110638179,-3357.0,0.00010999,2]
[340371973,1729110638189,-1909.0,0.00010999,2]
[340371974,1729110638198,-863.456,0.00010999,2]
[340371975,1729110638207,-1084.0,0.00010999,2]
[340371976,1729110638216,-6801.62118449,0.00010999,2]
[340371977,1729110638225,-812.0,0.00010999,2]
[340371978,1729110638235,-5885.0,0.00010999,2]
[340371979,1729110638244,-560.293,0.00010999,2]
[340371980,1729110638253,-455.553,0.00010999,2]
[340371981,1729110638262,-150.0,0.00010999,2]
[340371982,1729110638271,-1269.481,0.00010999,2]
[340371983,1729110638279,-529.0,0.00011,2]
[340371984,1729110638288,-328175.47794609,0.00011,2]
[340371985,1729110638334,-835.31814059,0.00011,2]
[340371986,1729110638374,-34672.88350497,0.00011,2]
[340371987,1729110638396,-3614.00498261,0.00011,2]
[340371988,1729110638410,-274.27572277,0.00011,2]
[340372004,1729110639785,-679.0,0.00010999,2]
[340372005,1729110639896,-2037.33,0.00010999,2]
[340372006,1729110640010,-2470.10145409,0.00010999,2]
[340372007,1729110640097,-8345.56854591,0.00010999,2]
[340372008,1729110640106,-3825.24063572,0.00011,2]
[340372009,1729110640119,-43175.58928786,0.00011,2]
[340372098,1729110642865,-20286.64060988,0.00011,2]
[340372099,1729110642975,-828.13777587,0.00011,2]
[340372118,1729110646080,-1150.0,0.00010999,2]
[340372119,1729110646090,-253.8322632,0.00010999,2]
[340372120,1729110646099,-10531.81808645,0.00011,2]
[340372121,1729110646110,-355.539,0.00011,2]
[340372122,1729110646148,-643.17188996,0.00011,2]